bitfinex/quotes_SOLUSD_20251201
["timestamp","ask_amount","ask_price","bid_price","bid_amount"]
[1764594711422,0.72,127.57,127.52,0.7]
[1764594711605,0.72,127.57,127.53,7.88015089]
[1764594711806,7.88015089,127.56,127.51,7.88015089]
[1764594712121,8.55885017,127.57,127.52,11.40015089]
[1764594712328,16.43900106,127.57,127.52,11.40015089]
[1764594712507,0.72,127.56,127.52,11.40015089]
[1764594713608,0.72,127.56,127.52,12.10015089]
[1764594714005,7.84006272,127.55,127.52,12.10015089]
[1764594714430,2.73680672,127.56,127.52,15.86639397]
[1764594714604,15.08320069,127.56,127.52,16.56639397]
[1764594714810,2.73680672,127.56,127.52,23.70825115]
[1764594715632,10.57631323,127.56,127.52,15.86639397]
[1764594715806,10.57631323,127.56,127.52,3.52]
[1764594716013,10.57631323,127.56,127.52,16.52639397]
[1764594716319,0.68,127.55,127.51,12.34639397]
[1764594716522,13.02639397,127.55,127.52,3.52]
[1764594716828,13.02639397,127.55,127.53,3.52]
[1764594716829,12.34639397,127.54,127.53,3.52]
[1764594717032,13.02639397,127.54,127.52,3.52]
[1764594717237,13.02639397,127.53,127.52,3.52]
[1764594717405,13.02639397,127.53,127.48,20.85052318]
[1764594717602,0.68,127.52,127.49,3.52]
[1764594717807,13.02639397,127.52,127.49,3.52]
[1764594718007,12.34639397,127.51,127.46,12.34639397]
[1764594718210,7.84375245,127.49,127.47,3.52]
[1764594718508,7.84292269,127.51,127.48,3.52]
[1764594718707,8.52292269,127.51,127.48,3.52]
[1764594718910,0.68,127.51,127.48,15.86639397]
[1764594719110,0.68,127.51,127.48,3.52]
[1764594719612,13.02639397,127.51,127.48,3.52]
[1764594720012,0.68,127.5,127.48,3.52]
[1764594720419,8.52370748,127.5,127.48,3.52]
[1764594720835,7.84370748,127.5,127.48,3.52]
[1764594721137,8.52370748,127.5,127.48,3.52]
[1764594721741,19.60476787,127.52,127.49,0.66]
[1764594721742,7.84246458,127.52,127.49,0.66]
[1764594721950,7.84246458,127.52,127.48,3.52]
[1764594721951,12.34639397,127.5,127.48,3.52]
[1764594722316,0.68,127.49,127.48,3.52]
[1764594722752,8.52375245,127.49,127.48,3.52]
[1764594722952,7.84337985,127.5,127.48,3.52]
[1764594723152,7.84239073,127.52,127.49,13.00639397]
[1764594723447,7.84239073,127.52,127.49,12.34639397]
[1764594723653,8.52239073,127.52,127.48,24.37074398]
[1764594724222,8.52239073,127.52,127.48,23.71074398]
[1764594724419,8.52239073,127.52,127.49,3.52]
[1764594725148,7.84129224,127.53,127.49,15.86639397]
[1764594725330,8.52129224,127.53,127.49,15.86639397]
[1764594725649,12.34639397,127.5,127.47,3.52]
[1764594725815,12.34639397,127.51,127.47,3.52]
[1764594726019,0.68,127.51,127.47,4.18]
[1764594726348,12.34639397,127.52,127.47,16.52639397]
[1764594726643,27.44452285,127.53,127.5,12.34639397]
[1764594726859,7.84085763,127.54,127.51,3.52]
[1764594727144,7.84085763,127.54,127.51,24.36881638]
[1764594728040,7.84085763,127.54,127.51,11.36242241]
[1764594728235,13.02639397,127.53,127.51,3.52]
[1764594728434,0.68,127.53,127.51,3.52]
[1764594728640,0.68,127.52,127.51,3.52]
[1764594728828,13.02639397,127.52,127.47,24.15378583]
[1764594729023,12.34639397,127.51,127.48,3.52]
[1764594729240,13.02639397,127.51,127.48,3.52]
[1764594729448,20.86930634,127.51,127.48,3.52]
[1764594729743,20.86930634,127.51,127.47,24.15378583]
[1764594729744,0.68,127.5,127.49,3.52]
[1764594730722,0.68,127.52,127.49,3.52]
[1764594730924,13.02639397,127.52,127.49,3.52]
[1764594731356,0.68,127.51,127.49,3.52]
[1764594731534,8.80994492,127.54,127.49,32.17525797]
[1764594731862,12.34639397,127.51,127.46,0.66]
[1764594732034,0.68,127.53,127.47,16.52639397]
[1764594732226,7.8402251,127.55,127.51,12.34639397]
[1764594732432,22.88286866,127.56,127.52,4.18]
[1764594732752,22.88286866,127.56,127.52,3.52]
[1764594732753,2.01680672,127.56,127.52,3.52]
[1764594732939,22.20272517,127.56,127.52,4.18]
[1764594733141,10.5363312,127.56,127.52,4.18]
[1764594733442,15.04320069,127.56,127.52,4.18]
[1764594733637,2.69680672,127.56,127.52,24.36823122]
[1764594733949,0.68,127.55,127.52,3.52]
[1764594734347,2.69680672,127.56,127.52,23.70825687]
[1764594734530,2.01680672,127.56,127.52,24.36825687]
[1764594734931,2.01680672,127.56,127.53,3.52]
[1764594735156,2.01680672,127.56,127.54,12.34639397]
[1764594735352,2.01680672,127.56,127.54,0.66]
[1764594735530,2.01680672,127.56,127.53,12.02128207]
[1764594735731,2.01680672,127.56,127.53,24.36767604]
[1764594736249,2.01680672,127.56,127.54,12.34639397]
[1764594736646,2.01680672,127.56,127.54,13.00639397]
[1764594737255,2.01680672,127.56,127.53,23.70767604]
[1764594737429,2.01680672,127.56,127.55,20.18645669]
[1764594737856,2.01680672,127.56,127.55,20.84645669]
[1764594739045,2.01680672,127.56,127.55,8.50006272]
[1764594739246,2.01680672,127.56,127.55,20.84645669]
[1764594739646,2.01680672,127.56,127.55,24.36645669]
[1764594741361,2.01680672,127.56,127.55,12.02006272]
[1764594741664,2.01680672,127.56,127.55,24.36645669]
[1764594742670,2.01680672,127.56,127.55,8.50006272]
[1764594742875,2.01680672,127.56,127.55,24.36645669]
[1764594744058,2.01680672,127.56,127.55,20.84645669]
[1764594744238,2.01680672,127.56,127.55,23.70645669]
[1764594744963,2.01680672,127.56,127.55,11.36006272]
[1764594745465,2.01680672,127.56,127.55,23.70645669]
[1764594746257,2.01680672,127.56,127.55,24.40645669]
[1764594746447,2.01680672,127.56,127.55,23.70645669]
[1764594747140,2.01680672,127.56,127.55,24.54861826]
[1764594747360,3.15471352,127.58,127.57,18.30886399]
[1764594747566,5.73262032,127.61,127.6,0.14216157]
[1764594747866,5.73262032,127.61,127.6,3.66216157]
[1764594748171,5.73262032,127.61,127.6,16.00855554]
[1764594748479,6.66157372,127.62,127.6,16.00855554]
[1764594748644,6.66157372,127.62,127.61,12.34639397]
[1764594749355,6.66157372,127.62,127.61,20.18277042]
[1764594751266,7.59052712,127.63,127.61,56.22473713]
[1764594751445,7.59052712,127.63,127.62,15.86639397]
[1764594752172,7.59052712,127.63,127.62,32.17525797]
[1764594752549,7.59052712,127.63,127.62,40.01102038]
[1764594756141,8.26052712,127.63,127.62,24.14462641]
[1764594756373,8.26052712,127.63,127.62,12.34639397]
[1764594756679,8.26052712,127.63,127.62,23.70215638]
[1764594756889,7.59052712,127.63,127.62,23.70215638]
[1764594758666,7.59052712,127.63,127.62,15.86639397]
[1764594758971,7.59052712,127.63,127.62,23.70215638]
[1764594762011,9.44843392,127.65,127.62,36.19071192]
[1764594762185,9.44843392,127.65,127.64,28.79741954]
[1764594762381,10.37738732,127.66,127.65,0.14216157]
[1764594762616,10.37738732,127.66,127.65,3.66216157]
[1764594763112,10.37738732,127.66,127.65,15.86639397]
[1764594764209,10.37738732,127.66,127.65,11.35392087]
[1764594764688,11.04738732,127.66,127.65,11.35392087]
[1764594764887,10.37738732,127.66,127.65,23.84247641]
[1764594765513,11.30634072,127.67,127.66,0.14216157]
[1764594765687,11.30634072,127.67,127.66,12.48855554]
[1764594765880,11.30634072,127.67,127.66,28.79741954]
[1764594766315,12.23529412,127.68,127.66,43.42513081]
[1764594766487,12.23529412,127.68,127.67,28.79741954]
[1764594766688,0.1,127.69,127.68,0.14216157]
[1764594766896,0.1,127.69,127.68,16.00855554]
[1764594767084,13.16424752,127.7,127.68,16.00855554]
[1764594767388,65.02215432,127.72,127.7,16.45102557]
[1764594767593,65.02215432,127.72,127.71,12.48855554]
[1764594767784,6.46289487,127.72,127.71,16.00855554]
[1764594768100,15.95110772,127.73,127.72,0.14216157]
[1764594768407,15.95110772,127.73,127.72,36.62704684]
[1764594768900,17.80901451,127.75,127.72,36.62704684]
[1764594769106,17.80901451,127.75,127.73,16.00855554]
[1764594770288,17.80901451,127.75,127.73,23.83756986]
[1764594770686,17.80901451,127.75,127.74,0.14216157]
[1764594770994,20.59587471,127.79,127.76,25.26097049]
[1764594771204,20.59587471,127.79,127.78,12.34639397]
[1764594772224,21.52482811,127.8,127.78,16.45102557]
[1764594772516,21.52482811,127.8,127.79,20.17173241]
[1764594772691,21.52482811,127.8,127.79,12.34639397]
[1764594773014,21.52482811,127.8,127.79,23.83389398]
[1764594773513,22.19482811,127.8,127.79,23.83389398]
[1764594773989,22.19482811,127.8,127.79,12.34639397]
[1764594774184,30.01966047,127.8,127.72,16.63957222]
[1764594774386,0.67,127.79,127.72,27.40218645]
[1764594774694,12.34639397,127.78,127.73,12.34639397]
[1764594774895,8.49541816,127.79,127.74,15.86639397]
[1764594775102,0.67,127.78,127.74,15.86639397]
[1764594776513,0.67,127.78,127.77,15.67645113]
[1764594776715,0.67,127.78,127.77,11.34656335]
[1764594777402,0.67,127.78,127.77,3.52]
[1764594778316,0.67,127.78,127.75,7.84988778]
[1764594778688,0.67,127.78,127.76,3.52]
[1764594779122,0.67,127.78,127.76,11.36988778]
[1764594779616,0.67,127.78,127.76,7.84988778]
[1764594779913,0.67,127.78,127.77,3.52]
[1764594780417,0.67,127.78,127.76,7.82717595]
[1764594780598,0.67,127.78,127.77,3.52]
[1764594781008,0.67,127.78,127.74,15.67828922]
[1764594781322,0.67,127.78,127.75,3.52]
[1764594782420,16.34623736,127.78,127.76,3.52]
[1764594782606,16.34623736,127.78,127.73,7.82894127]
[1764594782607,7.84988778,127.77,127.73,7.82894127]
[1764594782806,0.66,127.77,127.74,3.52]
[1764594783007,0.66,127.76,127.75,3.52]
[1764594783915,0.66,127.76,127.73,7.82894127]
[1764594784113,0.66,127.76,127.75,3.52]
[1764594784696,0.66,127.76,127.73,7.82894127]
[1764594784896,0.66,127.76,127.74,3.52]
[1764594785429,16.33738698,127.76,127.72,7.82911513]
[1764594785599,16.33738698,127.76,127.73,3.52]
[1764594785798,0.66,127.75,127.73,3.52]
[1764594785998,0.66,127.76,127.74,7.84988778]
[1764594786298,0.66,127.76,127.75,7.84988778]
[1764594786505,0.66,127.78,127.75,7.84988778]
[1764594786736,0.66,127.78,127.77,7.84988778]
[1764594787107,0.66,127.78,127.76,11.36988778]
[1764594787405,0.66,127.78,127.77,7.82656335]
[1764594789722,0.66,127.78,127.77,15.67645113]
[1764594789925,21.52482811,127.8,127.77,31.98531513]
[1764594790121,21.52482811,127.8,127.79,7.84988778]
[1764594790428,21.52482811,127.8,127.79,27.82091335]
[1764594791244,21.52482811,127.8,127.79,19.97102557]
[1764594791401,21.52482811,127.8,127.79,27.82091335]
[1764594792007,22.45378151,127.81,127.79,55.2095979]
[1764594792207,22.45378151,127.81,127.8,7.84988778]
[1764594792512,23.38273491,127.82,127.81,0.14216157]
[1764594792818,23.38273491,127.82,127.81,11.51204935]
[1764594793411,23.38273491,127.82,127.81,3.66216157]
[1764594793729,23.38273491,127.82,127.81,11.51204935]
[1764594793931,23.38273491,127.82,127.81,15.81616326]
[1764594794106,24.04273491,127.82,127.81,19.33616326]
[1764594794310,23.38273491,127.82,127.81,19.33616326]
[1764594794515,24.04273491,127.82,127.81,19.33616326]
[1764594794733,23.38273491,127.82,127.81,19.33616326]
[1764594796540,23.38273491,127.82,127.81,7.82411391]
[1764594796850,24.04273491,127.82,127.8,7.84988778]
[1764594797054,23.38273491,127.82,127.81,11.34411391]
[1764594797224,23.38273491,127.82,127.81,19.19400169]
[1764594797645,24.04273491,127.82,127.81,3.52]
[1764594797948,39.71636286,127.82,127.74,27.39940504]
[1764594798154,0.66,127.81,127.75,20.498864]
[1764594798359,0.66,127.81,127.78,7.84988778]
[1764594798540,0.66,127.81,127.79,3.52]
[1764594800141,7.84988778,127.8,127.79,3.52]
[1764594800644,8.50988778,127.8,127.79,3.52]
[1764594801149,8.50988778,127.8,127.76,27.39478355]
[1764594801351,0.66,127.79,127.77,3.52]
[1764594801545,0.66,127.79,127.76,7.82717595]
[1764594801749,0.66,127.79,127.77,3.52]
[1764594803449,23.38273491,127.82,127.81,16.308864]
[1764594803629,23.38273491,127.82,127.81,28.49091335]
[1764594804452,23.38273491,127.82,127.81,24.97091335]
[1764594804638,23.38273491,127.82,127.81,36.31502726]
[1764594805454,23.38273491,127.82,127.81,35.64502726]
[1764594805625,23.38273491,127.82,127.81,36.31502726]
[1764594805822,23.38273491,127.82,127.81,32.79502726]
[1764594806151,23.38273491,127.82,127.81,35.64502726]
[1764594807248,23.38273491,127.82,127.81,24.13297791]
[1764594807433,24.04273491,127.82,127.81,19.19400169]
[1764594807631,24.04273491,127.82,127.81,7.82411391]
[1764594807830,24.04273491,127.82,127.81,19.19400169]
[1764594808074,24.04273491,127.82,127.81,3.52]
[1764594808739,24.04273491,127.82,127.76,19.56757762]
[1764594808940,0.66,127.81,127.78,7.84988778]
[1764594809751,0.66,127.81,127.79,7.84988778]
[1764594809953,0.66,127.81,127.8,3.52]
[1764594813537,16.33400169,127.81,127.76,16.308864]
[1764594813742,8.48411391,127.81,127.77,3.52]
[1764594813942,0.68,127.8,127.77,3.52]
[1764594814349,0.68,127.8,127.77,11.36988778]
[1764594814654,7.84988778,127.79,127.78,3.52]
[1764594814858,8.52988778,127.8,127.78,3.52]
[1764594815157,8.52988778,127.79,127.74,51.55782194]
[1764594815358,8.52988778,127.79,127.75,3.52]
[1764594815537,0.68,127.78,127.76,7.82717595]
[1764594815738,0.68,127.78,127.75,11.34769626]
[1764594815956,8.52988778,127.78,127.75,3.52]
[1764594816358,0.68,127.77,127.75,3.52]
[1764594816561,0.68,127.77,127.75,11.34775339]
[1764594817071,7.84988778,127.76,127.75,3.52]
[1764594817239,8.52988778,127.77,127.75,3.52]
[1764594817434,0.68,127.76,127.75,3.52]
[1764594817650,8.50717595,127.76,127.75,3.52]
[1764594817962,16.35706373,127.76,127.75,3.52]
[1764594818461,8.50717595,127.76,127.75,3.52]
[1764594818758,8.50717595,127.76,127.7,18.8]
[1764594818759,35.92500361,127.76,127.7,18.8]
[1764594818966,8.52988778,127.75,127.71,3.52]
[1764594819578,0.68,127.74,127.71,11.36988778]
[1764594819780,28.07951003,127.74,127.71,3.52]
[1764594819949,0.68,127.74,127.72,7.84988778]
[1764594820280,0.68,127.73,127.71,3.52]
[1764594820637,7.84988778,127.72,127.69,7.83141549]
[1764594820838,7.84988778,127.72,127.7,3.52]
[1764594821050,8.52988778,127.71,127.66,15.68271384]
[1764594821252,8.52988778,127.71,127.67,3.52]
[1764594821447,0.68,127.7,127.67,3.52]
[1764594821643,8.5108995,127.7,127.67,3.52]
[1764594821849,16.36078728,127.7,127.67,3.52]
[1764594822152,0.68,127.69,127.67,3.52]
[1764594823138,0.68,127.71,127.68,7.84988778]
[1764594823339,0.68,127.71,127.67,11.35215843]
[1764594823340,0.68,127.71,127.69,7.84988778]
[1764594823536,0.68,127.71,127.7,3.52]
[1764594824061,0.68,127.73,127.7,11.36988778]
[1764594824248,0.68,127.72,127.7,3.52]
[1764594824454,0.68,127.72,127.7,11.36988778]
[1764594824668,0.68,127.72,127.7,3.52]
[1764594824965,0.68,127.72,127.71,3.52]
[1764594828972,8.5096273,127.72,127.71,3.52]
[1764594829175,35.93358335,127.72,127.66,15.683195]
[1764594829353,7.84988778,127.7,127.65,7.84988778]
[1764594829562,7.84988778,127.7,127.66,3.52]
[1764594829865,0.68,127.69,127.66,11.36988778]
[1764594830071,0.68,127.69,127.67,3.52]
[1764594830371,8.52988778,127.69,127.62,3.68]
[1764594830614,0.68,127.68,127.64,7.84988778]
[1764594831157,7.84988778,127.7,127.65,8.52988778]
[1764594831363,7.83146683,127.69,127.66,3.52]
[1764594831687,0.68,127.69,127.66,19.20293054]
[1764594831986,0.68,127.68,127.66,19.20293054]
[1764594832166,0.68,127.68,127.66,11.36988778]
[1764594832884,0.68,127.68,127.66,3.52]
[1764594833382,0.68,127.68,127.66,11.35324398]
[1764594833861,0.68,127.68,127.66,19.20313176]
[1764594834180,0.68,127.68,127.66,3.52]
[1764594835088,8.51222554,127.68,127.66,3.52]
[1764594835266,28.09242604,127.68,127.66,3.52]
[1764594835474,0.68,127.67,127.63,7.83500715]
[1764594835682,0.68,127.67,127.64,11.36988778]
[1764594836089,35.94431559,127.67,127.64,3.52]
[1764594836484,0.71,127.66,127.64,3.52]
[1764594837596,8.5437605,127.66,127.64,3.52]
[1764594838135,20.86772224,127.7,127.65,13.04686868]
[1764594838304,8.54085356,127.7,127.65,0.72]
[1764594838505,0.71,127.69,127.66,12.32686868]
[1764594838799,0.71,127.69,127.67,3.52]
[1764594840007,8.54146742,127.69,127.67,3.52]
[1764594840501,0.71,127.68,127.67,3.52]
[1764594842421,7.83146742,127.69,127.67,3.52]
[1764594842615,8.54146742,127.69,127.67,3.52]
[1764594843226,8.54146742,127.69,127.68,3.52]
[1764594845103,8.54146742,127.69,127.66,7.83328847]
[1764594845306,0.71,127.68,127.67,3.52]
[1764594845509,0.71,127.68,127.66,7.83328847]
[1764594845716,0.71,127.68,127.67,3.52]
[1764594845932,7.83146742,127.69,127.67,3.52]
[1764594846226,0.71,127.72,127.68,13.04686868]
[1764594846408,0.71,127.71,127.69,12.32686868]
[1764594846723,0.71,127.71,127.7,3.52]
[1764594849128,20.86710906,127.71,127.7,3.52]
[1764594850130,13.03686868,127.71,127.7,3.52]
[1764594850302,8.54024038,127.71,127.7,3.52]
[1764594850644,20.86710906,127.71,127.66,7.83317207]
[1764594850794,0.71,127.7,127.67,3.52]
[1764594851316,13.03686868,127.7,127.65,20.16063728]
[1764594851505,0.71,127.7,127.66,15.84686868]
[1764594851703,0.71,127.7,127.66,16.56686868]
[1764594852528,8.54123288,127.7,127.66,24.39986314]
[1764594852896,0.71,127.69,127.66,24.39986314]
[1764594853499,0.71,127.69,127.66,12.07299446]
[1764594853928,0.71,127.69,127.66,24.39986314]
[1764594854137,7.83048959,127.71,127.67,12.32686868]
[1764594854434,7.83048959,127.71,127.66,11.35299446]
[1764594854435,8.53965971,127.72,127.69,12.32686868]
[1764594854601,0.71,127.72,127.7,3.52]
[1764594854796,7.82932622,127.73,127.7,3.52]
[1764594854996,31.89594621,127.76,127.71,12.32686868]
[1764594855203,0.71,127.76,127.71,12.32686868]
[1764594855514,0.71,127.75,127.71,12.32686868]
[1764594855718,7.82840144,127.74,127.71,12.32686868]
[1764594855931,8.53840144,127.74,127.71,12.32686868]
[1764594856435,0.71,127.74,127.71,12.32686868]
[1764594856643,0.71,127.77,127.72,13.04686868]
[1764594856803,0.71,127.77,127.73,15.84686868]
[1764594857022,0.71,127.77,127.73,3.52]
[1764594857329,13.03686868,127.77,127.73,3.52]
[1764594857728,8.53717595,127.76,127.73,3.52]
[1764594858243,20.86404463,127.76,127.73,3.52]
[1764594858443,0.71,127.75,127.73,3.52]
[1764594859330,8.80994492,127.79,127.73,3.52]
[1764594859537,13.03686868,127.76,127.73,3.52]
[1764594860211,7.82778864,127.75,127.73,3.52]
[1764594860425,8.53778864,127.75,127.73,3.52]
[1764594861733,7.82778864,127.75,127.73,3.52]
[1764594861927,0.71,127.77,127.73,15.76767297]
[1764594862123,0.71,127.76,127.73,16.48767297]
[1764594862441,0.71,127.8,127.75,4.41865865]
[1764594862743,0.71,127.8,127.76,7.91865865]
[1764594863242,0.71,127.8,127.76,4.22]
[1764594863451,0.71,127.8,127.76,8.63865865]
[1764594863631,0.71,127.8,127.76,4.22]
[1764594863832,4.41865865,127.77,127.74,3.5]
[1764594864137,4.41865865,127.76,127.74,3.5]
[1764594864441,12.30927875,127.76,127.74,3.5]
[1764594864644,13.01927875,127.76,127.74,3.5]
[1764594865434,0.71,127.76,127.74,3.5]
[1764594866629,0.67,127.76,127.74,3.5]
[1764594867949,12.97927875,127.76,127.74,3.5]
[1764594868175,12.30927875,127.76,127.74,3.5]
[1764594868472,0.67,127.76,127.74,3.5]
[1764594868746,20.1364458,127.77,127.74,3.5]
[1764594868922,20.8064458,127.77,127.74,3.5]
[1764594869125,20.1364458,127.77,127.74,3.5]
[1764594869331,0.67,127.76,127.74,3.5]
[1764594870035,20.80672899,127.76,127.74,3.5]
[1764594870440,12.97927875,127.76,127.74,3.5]
[1764594870632,20.80655,127.76,127.74,3.5]
[1764594870838,12.30927875,127.79,127.75,0.72]
[1764594871042,20.13339266,127.81,127.75,13.02927875]
[1764594871222,12.97927875,127.81,127.75,13.02927875]
[1764594871429,20.80422039,127.8,127.76,8.54717595]
[1764594871759,20.80422039,127.8,127.77,3.5]
[1764594871959,0.67,127.79,127.77,3.5]
[1764594873360,20.8046749,127.79,127.77,3.5]
[1764594873672,12.97927875,127.79,127.77,3.5]
[1764594874649,12.97927875,127.78,127.75,7.82741789]
[1764594874854,12.97927875,127.78,127.73,0.72]
[1764594874855,12.97927875,127.78,127.76,3.5]
[1764594876386,0.69,127.77,127.76,3.5]
[1764594876773,12.99927875,127.77,127.76,3.5]
[1764594877083,0.69,127.77,127.76,3.5]
[1764594877842,12.99927875,127.77,127.76,3.5]
[1764594878276,12.30927875,127.77,127.76,3.5]
[1764594878775,12.30927875,127.77,127.74,8.5483154]
[1764594879078,12.30927875,127.77,127.75,3.5]
[1764594879649,20.82550162,127.78,127.75,3.5]
[1764594880054,0.69,127.77,127.75,3.5]
[1764594880250,12.99927875,127.77,127.74,7.8283154]
[1764594880506,12.99927875,127.77,127.75,3.5]
[1764594881565,20.82591718,127.77,127.75,3.5]
[1764594881758,20.13591718,127.77,127.75,4.18]
[1764594881961,20.82591718,127.77,127.75,3.5]
[1764594882356,7.82663843,127.77,127.75,4.18]
[1764594882561,20.13525884,127.78,127.75,4.18]
[1764594882765,0.69,127.77,127.75,3.5]
[1764594882968,20.82525884,127.78,127.75,3.5]
[1764594883259,8.51598009,127.78,127.75,4.18]
[1764594883458,20.82525884,127.78,127.75,4.18]
[1764594883658,20.82525884,127.78,127.75,0.68]
[1764594883958,20.82525884,127.78,127.76,3.5]
[1764594884481,12.93333405,127.78,127.76,3.5]
[1764594885079,5.10735396,127.78,127.76,3.5]
[1764594885383,12.24277629,127.79,127.76,4.18]
[1764594885559,7.82542233,127.79,127.76,4.18]
[1764594885758,12.93277629,127.79,127.76,4.18]
[1764594886151,12.93277629,127.79,127.76,12.00683014]
[1764594887075,7.82472613,127.8,127.77,8.50635632]
[1764594887469,7.82472613,127.8,127.76,3.5]
[1764594887470,5.10735396,127.79,127.76,7.82704178]
[1764594887657,5.10735396,127.79,127.77,3.5]
[1764594887965,5.10735396,127.78,127.77,3.5]
[1764594888979,12.93330481,127.78,127.76,3.5]
[1764594889168,5.10735396,127.77,127.76,3.5]
[1764594889853,12.93391731,127.77,127.76,3.5]
[1764594890259,28.37072469,127.81,127.76,3.5]
[1764594890464,4.41735396,127.79,127.76,11.32715671]
[1764594890670,12.93208009,127.8,127.77,0.68]
[1764594891573,5.10735396,127.8,127.77,0.68]
[1764594891879,12.93213332,127.8,127.76,11.32715671]
[1764594892070,12.93213332,127.8,127.76,12.00715671]
[1764594892464,4.41735396,127.79,127.76,12.00715671]
[1764594892970,12.93213332,127.8,127.76,12.00715671]
[1764594894188,5.10735396,127.81,127.77,8.50654851]
[1764594894581,12.93155625,127.81,127.77,8.50654851]
[1764594895979,4.41735396,127.8,127.77,8.50654851]
[1764594896188,4.41735396,127.8,127.77,8.52654851]
[1764594896765,0.67,127.8,127.78,3.5]
[1764594896969,5.08735396,127.8,127.78,3.5]
[1764594897170,0.67,127.8,127.78,3.5]
[1764594897368,5.08735396,127.8,127.78,3.5]
[1764594898270,5.08735396,127.81,127.78,12.02589777]
[1764594898472,0.67,127.81,127.78,12.02589777]
[1764594898690,3.49575174,127.81,127.78,4.2]
[1764594899290,3.49575174,127.81,127.78,12.0259112]
[1764594899592,23.38273491,127.82,127.79,0.7]
[1764594899783,23.38273491,127.82,127.79,3.52575174]
[1764594900176,23.38273491,127.82,127.8,30.9122932]
[1764594900380,23.38273491,127.82,127.81,3.5]
[1764594900598,23.38273491,127.82,127.81,4.2]
[1764594901667,23.38273491,127.82,127.81,4.34216157]
[1764594901874,23.38273491,127.82,127.81,4.2]
[1764594902081,23.38273491,127.82,127.81,12.02411391]
[1764594903395,23.38273491,127.82,127.81,14.99202722]
[1764594904066,23.38273491,127.82,127.81,7.82411391]
[1764594904272,23.38273491,127.82,127.81,12.02411391]
[1764594904682,23.38273491,127.82,127.8,7.82444265]
[1764594904882,23.38273491,127.82,127.81,3.5]
[1764594905088,24.05273491,127.82,127.79,7.82510305]
[1764594905392,26.87848665,127.82,127.8,3.5]
[1764594906072,23.38273491,127.82,127.8,4.2]
[1764594906374,23.38273491,127.82,127.8,3.5]
[1764594906588,23.38273491,127.82,127.81,0.7]
[1764594908174,24.05273491,127.82,127.78,7.82595085]
[1764594908504,2.82575174,127.79,127.77,7.82656335]
[1764594908807,2.82575174,127.79,127.78,3.5]
[1764594909103,2.82575174,127.8,127.78,3.5]
[1764594909479,8.49435499,127.81,127.78,3.5]
[1764594909688,11.32010673,127.81,127.78,3.5]
[1764594910110,2.82575174,127.8,127.78,3.5]
[1764594910621,2.82575174,127.79,127.78,3.5]
[1764594911110,3.49575174,127.79,127.78,3.5]
[1764594912709,11.32137966,127.79,127.78,3.5]
[1764594912885,3.49575174,127.79,127.78,3.5]
[1764594913411,23.38273491,127.82,127.78,4.2]
[1764594913594,26.87848665,127.82,127.79,8.52517382]
[1764594913906,2.82575174,127.81,127.79,8.52517382]
[1764594915213,2.82575174,127.81,127.79,0.7]
[1764594915386,2.82575174,127.81,127.78,12.02567206]
[1764594915590,3.49575174,127.81,127.78,8.52567206]
[1764594915788,3.49575174,127.81,127.79,11.32525103]
[1764594916003,3.49575174,127.81,127.79,7.82525103]
[1764594916212,3.49575174,127.81,127.8,3.5]
[1764594916623,11.31986565,127.81,127.77,0.7]
[1764594916823,11.31986565,127.81,127.78,4.2]
[1764594917001,3.49575174,127.81,127.78,4.2]
[1764594917410,2.82575174,127.8,127.77,8.52656335]
[1764594917611,2.82575174,127.79,127.78,3.5]
[1764594917918,3.49575174,127.8,127.78,3.5]
[1764594918917,2.82575174,127.8,127.78,3.5]
[1764594919411,11.32001594,127.81,127.78,3.5]
[1764594919727,3.49575174,127.8,127.78,3.5]
[1764594919907,0.67,127.8,127.78,3.5]
[1764594920223,3.49575174,127.8,127.78,3.5]
[1764594920748,2.82575174,127.79,127.78,3.5]
[1764594921107,3.49575174,127.79,127.78,3.5]